bitfinex/quotes_BTCUSD_20230120
["timestamp","ask_amount","ask_price","bid_price","bid_amount"]
[1674228068703,0.0113647,21180.0,21179.0,1.43080992]
[1674228068978,0.0113647,21180.0,21179.0,1.43024864]
[1674228070462,0.0113647,21180.0,21179.0,1.25774064]
[1674228071225,0.0113647,21180.0,21179.0,1.43024864]
[1674228071482,0.0113647,21180.0,21179.0,1.40774064]
[1674228071735,0.0113647,21180.0,21179.0,1.43024864]
[1674228072022,0.0113647,21180.0,21179.0,2.37435181]
[1674228072263,0.0113647,21180.0,21179.0,1.43024864]
[1674228073813,0.0113647,21180.0,21179.0,2.37433713]
[1674228074539,0.0113647,21180.0,21179.0,1.43024864]
[1674228075338,0.0113647,21180.0,21179.0,0.95808364]
[1674228075591,0.0113647,21180.0,21179.0,1.87967875]
[1674228075900,0.0113647,21180.0,21179.0,2.85155344]
[1674228076095,0.0113647,21180.0,21179.0,3.01185344]
[1674228076096,0.01022824,21180.0,21179.0,3.01185344]
[1674228076347,0.01022824,21180.0,21179.0,3.04785344]
[1674228077152,0.01153004,21181.0,21179.0,3.54555344]
[1674228077365,0.01153004,21181.0,21180.0,2.6886548]
[1674228077624,0.01153004,21181.0,21180.0,4.1275888]
[1674228078414,0.01153004,21181.0,21180.0,3.9275388]
[1674228078927,0.02653004,21181.0,21180.0,3.9315388]
[1674228079475,0.01153004,21181.0,21180.0,3.9275388]
[1674228079778,0.01253004,21181.0,21180.0,4.0065388]
[1674228080034,0.01253004,21181.0,21180.0,3.9275388]
[1674228080550,0.01353004,21181.0,21180.0,4.0065388]
[1674228080817,0.01353004,21181.0,21180.0,4.28553301]
[1674228081066,0.00858975,21181.0,21180.0,4.57295124]
[1674228081336,0.01230104,21182.0,21181.0,0.15]
[1674228081601,0.83765735,21190.0,21183.0,0.472058]
[1674228081866,1.74289013,21194.0,21193.0,0.471847]
[1674228082124,1.74289013,21194.0,21193.0,4.6626672]
[1674228082428,1.74289013,21194.0,21193.0,5.15833268]
[1674228082682,1.49612413,21194.0,21193.0,2.254366]
[1674228082941,1.49612413,21194.0,21193.0,1.7327755]
[1674228083201,1.91723736,21194.0,21193.0,1.632813]
[1674228083452,1.6154342,21194.0,21193.0,1.693859]
[1674228083736,0.73804123,21194.0,21193.0,1.222006]
[1674228083995,0.67720515,21194.0,21193.0,0.2783]
[1674228084264,0.79886518,21194.0,21193.0,0.2783]
[1674228084543,0.48288418,21194.0,21193.0,0.2783]
[1674228084800,0.53215636,21196.0,21193.0,0.1863]
[1674228085272,0.2255,21196.0,21193.0,0.1863]
[1674228085273,0.43841364,21195.0,21193.0,0.1863]
[1674228085535,0.15,21194.0,21193.0,0.1933]
[1674228085802,0.81598797,21194.0,21193.0,0.1933]
[1674228086055,0.621667,21194.0,21193.0,0.1933]
[1674228086318,0.621667,21194.0,21193.0,0.1863]
[1674228086568,0.621667,21194.0,21193.0,0.1933]
[1674228087095,0.320067,21194.0,21193.0,0.1933]
[1674228087642,0.320067,21194.0,21193.0,0.4863]
[1674228087906,0.66815434,21196.0,21193.0,0.4933]
[1674228087907,0.51815434,21196.0,21193.0,0.4933]
[1674228088169,0.37943711,21198.0,21194.0,0.952162]
[1674228088451,0.37943711,21198.0,21195.0,0.3]
[1674228088714,0.37943711,21198.0,21196.0,0.943574]
[1674228089011,5.4773482,21200.0,21197.0,0.3]
[1674228089282,5.00842071,21200.0,21198.0,1.437672]
[1674228089581,5.00842071,21200.0,21199.0,0.322431]
[1674228089862,5.40020793,21200.0,21199.0,0.022431]
[1674228090144,5.40020793,21200.0,21198.0,1.415226]
[1674228090145,0.44529349,21199.0,21198.0,1.415226]
[1674228090417,0.44529349,21199.0,21198.0,0.943484]
[1674228090962,5.00842071,21200.0,21198.0,1.279484]
[1674228091242,5.00842071,21200.0,21199.0,0.33093]
[1674228091529,5.00842071,21200.0,21199.0,0.80265]
[1674228092034,5.00842071,21200.0,21199.0,0.83865]
[1674228092308,5.00842071,21200.0,21199.0,0.93165]
[1674228092574,5.00842071,21200.0,21199.0,1.08165]
[1674228092893,5.00842071,21200.0,21199.0,2.38539169]
[1674228093145,3.33678944,21200.0,21199.0,2.65879169]
[1674228093403,2.28245744,21200.0,21199.0,2.9433464]
[1674228093662,0.62846744,21200.0,21199.0,2.7573464]
[1674228093922,0.00056829,21201.0,21199.0,2.32995169]
[1674228094201,0.00056829,21201.0,21200.0,0.9666]
[1674228094463,0.00056829,21201.0,21200.0,0.794125]
[1674228095321,0.00056829,21201.0,21200.0,0.980125]
[1674228095863,0.15,21207.0,21200.0,0.980125]
[1674228095864,0.01,21209.0,21201.0,0.15056]
[1674228096130,0.01,21209.0,21203.0,0.943244]
[1674228096391,0.01,21209.0,21205.0,0.15]
[1674228096685,0.01,21209.0,21206.0,0.94312]
[1674228096961,0.02157858,21209.0,21207.0,0.55816]
[1674228097227,0.02157858,21209.0,21208.0,1.02977]
[1674228097497,0.01418475,21209.0,21208.0,1.745456]
[1674228098030,0.01418475,21209.0,21208.0,1.821256]
[1674228098305,0.01418475,21209.0,21208.0,1.857256]
[1674228098563,0.01418475,21209.0,21208.0,1.950256]
[1674228098823,0.09123475,21209.0,21208.0,1.950256]
[1674228099081,0.49844937,21209.0,21208.0,0.60052]
[1674228099359,0.00918475,21209.0,21208.0,0.60052]
[1674228099678,0.08494543,21209.0,21208.0,1.07204]
[1674228099932,0.00171543,21209.0,21208.0,0.50752]
[1674228100190,0.00171543,21209.0,21208.0,0.60052]
[1674228100463,0.00171543,21209.0,21208.0,0.65752]
[1674228100728,0.00271543,21209.0,21208.0,0.773415]
[1674228101017,0.00271543,21209.0,21208.0,0.688415]
[1674228101280,0.00371543,21209.0,21208.0,0.849215]
[1674228101545,0.00171543,21209.0,21208.0,1.299955]
[1674228101829,0.00171543,21209.0,21208.0,0.923415]
[1674228101830,0.00271543,21209.0,21208.0,0.923415]
[1674228102470,0.00271543,21209.0,21208.0,0.60102]
[1674228102729,0.00171543,21209.0,21208.0,0.51602]
[1674228102984,0.00271543,21209.0,21208.0,0.59508]
[1674228103239,0.00271543,21209.0,21208.0,0.614275]
[1674228103240,0.00171543,21209.0,21208.0,0.614275]
[1674228103737,0.07876543,21209.0,21208.0,0.538475]
[1674228103993,0.07876543,21209.0,21208.0,0.03606]
[1674228104262,0.41146811,21209.0,21208.0,0.03606]
[1674228104549,0.87799711,21209.0,21208.0,0.03606]
[1674228104835,0.95239711,21209.0,21208.0,0.03606]
[1674228105126,0.95239711,21209.0,21208.0,0.03612]
[1674228105644,0.62169443,21209.0,21208.0,0.10812]
[1674228105919,1.09788116,21209.0,21208.0,0.03612]
[1674228106193,1.09788116,21209.0,21208.0,0.10812]
[1674228106194,1.09988116,21209.0,21208.0,0.10812]
[1674228106679,1.09788116,21209.0,21208.0,0.03612]
[1674228106684,1.09788116,21209.0,21208.0,0.10912]
[1674228106935,1.09988116,21209.0,21208.0,0.10912]
[1674228107186,1.15501733,21209.0,21208.0,0.10912]
[1674228107431,1.15301733,21209.0,21208.0,0.03612]
[1674228107689,0.71489443,21209.0,21208.0,0.03912]
[1674228108749,0.71489443,21209.0,21208.0,0.03612]
[1674228108750,1.04901413,21209.0,21208.0,0.03612]
[1674228109272,1.04901413,21209.0,21208.0,0.04206]
[1674228109528,0.69489443,21209.0,21208.0,0.03606]
[1674228109821,0.71489443,21209.0,21208.0,0.04206]
[1674228110082,0.71489443,21209.0,21208.0,0.042]
[1674228110359,1.05544485,21209.0,21208.0,0.036]
[1674228110621,0.71489443,21209.0,21208.0,0.042]
[1674228110889,1.06192576,21209.0,21208.0,0.036]
[1674228111143,0.71489443,21209.0,21208.0,0.042]
[1674228111704,1.14768945,21209.0,21208.0,0.042]
[1674228111939,0.84708945,21209.0,21208.0,0.036]
[1674228112196,0.84708945,21209.0,21208.0,0.042]
[1674228113578,0.33724443,21209.0,21208.0,0.042]
[1674228113849,0.02171543,21209.0,21208.0,0.042]
[1674228114103,0.02171543,21209.0,21208.0,0.0505]
[1674228114670,0.45509291,21209.0,21208.0,0.042]
[1674228114939,0.76611391,21209.0,21208.0,0.042]
[1674228115214,0.82131391,21209.0,21208.0,0.036]
[1674228115474,0.38893643,21209.0,21208.0,0.112]
[1674228115773,0.38793643,21209.0,21208.0,0.036]
[1674228116068,0.77520804,21209.0,21208.0,0.112]
[1674228117106,0.77520804,21209.0,21204.0,0.29287687]
[1674228117366,0.868311,21208.0,21204.0,0.29287687]
[1674228117639,0.868311,21208.0,21203.0,0.621743]
[1674228117640,0.51115397,21207.0,21203.0,0.00012]
[1674228117895,0.52155797,21206.0,21203.0,0.30862]
[1674228118165,0.311778,21205.0,21203.0,0.30862]
[1674228118410,0.333881,21204.0,21203.0,0.34462]
[1674228118667,0.15,21207.0,21203.0,0.04462]
[1674228118934,0.15,21207.0,21203.0,0.34462]
[1674228118935,0.328219,21206.0,21203.0,0.34462]
[1674228119213,0.317209,21205.0,21203.0,0.34462]
[1674228119450,0.76864333,21208.0,21203.0,0.34462]
[1674228119704,0.15,21207.0,21203.0,0.34462]
[1674228119958,0.70551726,21206.0,21204.0,0.3]
[1674228120245,0.38419926,21206.0,21203.0,0.34462]
[1674228120521,0.31574,21205.0,21203.0,0.30862]
[1674228120773,0.38419926,21206.0,21203.0,0.30862]
[1674228121025,0.38419926,21206.0,21203.0,0.34462]
[1674228121279,0.332657,21205.0,21203.0,0.03612]
[1674228121547,0.316775,21204.0,21203.0,0.03612]
[1674228122357,0.38419926,21206.0,21203.0,0.03612]
[1674228122611,0.326807,21205.0,21203.0,0.03612]
[1674228122877,0.323671,21204.0,21203.0,0.03612]
[1674228123147,0.332671,21204.0,21203.0,0.03612]
[1674228123660,0.009,21204.0,21203.0,0.04462]
[1674228123917,0.009,21204.0,21203.0,0.774476]
[1674228124180,0.00171543,21209.0,21204.0,0.15289126]
[1674228124471,0.00171543,21209.0,21205.0,1.501455]
[1674228124737,0.00171543,21209.0,21206.0,0.472403]
[1674228124983,0.00171543,21209.0,21207.0,0.951584]
[1674228125243,0.00271543,21209.0,21208.0,0.322398]
[1674228125512,0.00171543,21209.0,21208.0,0.952418]
[1674228125787,0.00271543,21209.0,21208.0,0.952418]
[1674228126050,0.00271543,21209.0,21208.0,1.01988974]
[1674228126557,0.00271543,21209.0,21208.0,0.84749174]
[1674228126838,0.00171543,21209.0,21208.0,0.84749174]
[1674228127128,0.00271543,21209.0,21208.0,1.15206172]
[1674228127387,0.00271543,21209.0,21208.0,1.10388674]
[1674228128175,0.00271543,21209.0,21208.0,1.58108843]
[1674228128457,0.00057255,21211.0,21208.0,2.12696341]
[1674228128880,0.19489352,21211.0,21210.0,0.1246]
[1674228128882,0.00057255,21211.0,21210.0,0.1246]
[1674228129146,0.00057255,21211.0,21210.0,1.02968]
[1674228129414,0.01,21217.0,21211.0,0.15]
[1674228129683,0.3310362,21216.0,21212.0,1.44904]
[1674228129988,0.3310362,21216.0,21213.0,0.022376]
[1674228129989,0.37720626,21216.0,21213.0,0.022376]
[1674228130219,0.15,21218.0,21212.0,0.95134]
[1674228130491,0.15,21218.0,21213.0,0.25469462]
[1674228130492,0.57534487,21217.0,21213.0,0.25469462]
[1674228130752,0.312649,21216.0,21213.0,0.25469462]
[1674228131016,0.32118333,21215.0,21213.0,0.036]
[1674228131293,0.01708033,21215.0,21213.0,0.129]
[1674228131557,0.01708033,21215.0,21213.0,0.507389]
[1674228131825,0.01708033,21215.0,21214.0,0.109102]
[1674228132085,0.01708033,21215.0,21214.0,0.730488]
[1674228132393,0.01708033,21215.0,21214.0,1.030488]
[1674228132394,0.01688898,21215.0,21214.0,1.030488]
[1674228132702,0.01688898,21215.0,21214.0,0.366872]
[1674228132975,0.01688898,21215.0,21214.0,0.99407369]
[1674228133237,0.01688898,21215.0,21214.0,1.49674658]
[1674228133503,1.5,21223.0,21214.0,1.49674658]
[1674228133504,0.40204563,21223.0,21215.0,0.15]
[1674228133782,1.9813324,21227.0,21222.0,0.71279169]
[1674228134054,0.54562417,21226.0,21223.0,0.959708]
[1674228134330,0.4039096,21226.0,21223.0,1.40085]
[1674228134591,0.0799037,21239.0,21226.0,0.471111]
[1674228134855,0.12438274,21240.0,21228.0,0.22129688]
[1674228134856,0.40105978,21240.0,21228.0,0.22129688]
[1674228135149,0.83363059,21237.0,21231.0,0.471009]
[1674228135631,0.83363059,21237.0,21229.0,0.0085]
[1674228135632,1.14255156,21237.0,21229.0,0.0085]
[1674228135636,0.82363059,21237.0,21231.0,0.470989]
[1674228135910,0.82363059,21237.0,21232.0,0.0085]
[1674228135911,0.58302665,21236.0,21232.0,0.0085]
[1674228136174,0.1246,21234.0,21230.0,0.36066432]
[1674228136437,0.325384,21233.0,21230.0,0.0085]
[1674228136752,0.1246,21234.0,21228.0,0.22129688]
[1674228136753,0.934883,21232.0,21228.0,0.22129688]
[1674228136976,0.934883,21232.0,21230.0,0.036]
[1674228136977,0.63508697,21231.0,21230.0,0.036]
[1674228137250,0.75928697,21231.0,21228.0,0.22129688]
[1674228137521,0.75928697,21231.0,21230.0,0.093]
[1674228137522,0.1234,21231.0,21230.0,0.093]
[1674228137797,0.6,21229.0,21225.0,0.15771209]
[1674228138086,0.6,21229.0,21228.0,0.007]
[1674228138348,0.15,21228.0,21223.0,0.39542764]
[1674228138603,0.6,21225.0,21217.0,0.43905134]
[1674228138866,0.52582997,21224.0,21219.0,0.46722714]
[1674228139161,0.1246,21222.0,21220.0,0.38760388]
[1674228139438,0.19432097,21223.0,21222.0,0.38270186]
[1674228139698,0.33272,21223.0,21221.0,0.12773386]
[1674228139959,0.321046,21222.0,21221.0,0.12773386]
[1674228140230,0.330046,21222.0,21221.0,0.12773386]
[1674228140505,1.58787766,21222.0,21219.0,0.24]
[1674228140766,0.305182,21221.0,21219.0,0.24]
[1674228141030,0.473298,21220.0,21219.0,0.24]
[1674228141298,0.473298,21220.0,21219.0,0.58407872]
[1674228141299,0.323298,21220.0,21219.0,0.58407872]
[1674228141583,0.004,21222.0,21219.0,0.3641]
[1674228141880,0.004,21222.0,21220.0,0.017361]
[1674228142372,0.15,21228.0,21220.0,0.15]
[1674228142378,0.093,21230.0,21220.0,0.15]
[1674228142379,0.055,21222.0,21220.0,0.15]
[1674228142635,0.093,21230.0,21221.0,0.06571098]
[1674228142636,0.16584,21225.0,21221.0,0.06571098]
[1674228142897,0.16428,21222.0,21221.0,0.00018]
[1674228143178,0.46951,21222.0,21221.0,0.00018]
[1674228143516,0.38228,21222.0,21221.0,0.00018]
[1674228143707,0.08505,21222.0,21220.0,0.00718]
[1674228143963,0.20232097,21222.0,21220.0,0.00018]
[1674228144233,0.76509597,21221.0,21220.0,0.00018]
[1674228144489,0.9031583,21221.0,21220.0,0.00018]
[1674228144746,0.435345,21221.0,21220.0,0.00018]
[1674228145015,1.51354808,21221.0,21220.0,0.00018]
[1674228145273,1.53377769,21221.0,21220.0,0.00018]
[1674228145548,1.91755766,21221.0,21220.0,0.00018]
[1674228146130,1.65747769,21221.0,21220.0,0.00018]
[1674228146386,2.13648458,21221.0,21220.0,0.00118]
[1674228146693,1.53287769,21221.0,21220.0,0.00018]
[1674228146958,2.27915169,21221.0,21220.0,0.00118]
[1674228147233,3.00783072,21221.0,21220.0,0.00118]
[1674228147773,1.74387769,21221.0,21220.0,0.00118]
[1674228148086,1.58139794,21221.0,21220.0,0.00118]
[1674228148347,0.98506694,21221.0,21220.0,0.0011104]
[1674228148635,0.98506694,21221.0,21219.0,0.24]
[1674228148636,0.085,21221.0,21219.0,0.67233617]
[1674228149123,0.38734079,21220.0,21219.0,0.22121935]
[1674228149390,0.085,21221.0,21219.0,0.22121935]
[1674228149644,0.33966234,21221.0,21219.0,0.22221935]
[1674228149904,0.15,21220.0,21219.0,0.22121935]
[1674228150173,0.33966234,21221.0,21219.0,0.22121935]
[1674228150417,0.085,21220.0,21219.0,0.22221935]
[1674228150680,0.085,21220.0,21219.0,0.68820108]
[1674228151529,0.40449866,21222.0,21219.0,0.68720108]
[1674228151803,0.28589,21223.0,21219.0,0.68720108]
[1674228152051,0.58318042,21223.0,21220.0,0.04143992]
[1674228152602,0.67214733,21222.0,21220.0,0.04143992]
[1674228152898,0.321533,21221.0,21219.0,0.22221935]
[1674228153179,0.321768,21220.0,21219.0,0.22121935]
[1674228153437,0.51608897,21220.0,21219.0,0.22121935]
[1674228153742,0.321768,21220.0,21219.0,0.22121935]
[1674228154303,0.446368,21220.0,21219.0,0.22121935]
[1674228154844,1.26073569,21220.0,21215.0,0.00912345]
[1674228155113,0.1243,21216.0,21215.0,0.00912345]
[1674228155379,0.453934,21216.0,21215.0,0.00912345]
[1674228156115,0.603934,21216.0,21215.0,0.00912345]
[1674228156937,0.728534,21216.0,21215.0,0.00912345]
[1674228157237,0.738534,21216.0,21215.0,0.00912345]
[1674228157766,1.19205896,21216.0,21215.0,0.00912345]
[1674228158028,1.03205896,21216.0,21215.0,0.00912345]
[1674228158346,0.87315896,21216.0,21215.0,0.00912345]
[1674228158642,0.99253087,21216.0,21215.0,0.00912345]
[1674228158909,1.27541159,21216.0,21215.0,2.345e-05]
[1674228159213,1.27541159,21216.0,21215.0,0.09]
[1674228159214,1.14563569,21216.0,21215.0,0.09]
[1674228159471,2.08831969,21216.0,21215.0,0.09]
[1674228159759,1.73578656,21216.0,21215.0,0.09]
[1674228160015,0.79310256,21216.0,21215.0,0.09]
[1674228160566,0.15,21215.0,21212.0,0.36666773]
[1674228160827,0.321497,21214.0,21210.0,0.38880748]
[1674228161093,0.52313297,21213.0,21210.0,0.38880748]
[1674228161353,0.46384,21212.0,21210.0,0.38880748]
[1674228161619,0.321785,21211.0,21210.0,0.00390119]
[1674228162174,0.15,21212.0,21210.0,0.00390119]
[1674228162446,0.37541345,21211.0,21210.0,0.00390119]
[1674228162704,0.68051645,21211.0,21210.0,0.00390119]
[1674228162958,0.68951645,21211.0,21210.0,0.00390119]
[1674228163269,0.60647562,21211.0,21210.0,0.00390119]
[1674228163545,0.41215465,21211.0,21210.0,0.00390119]
[1674228163801,0.55315465,21211.0,21210.0,0.00390119]
[1674228164374,0.55315465,21211.0,21210.0,0.00396119]
[1674228164375,1.30703871,21211.0,21210.0,0.00396119]
[1674228164665,0.926556,21211.0,21210.0,0.00396119]
[1674228164953,1.016556,21211.0,21210.0,0.00396119]
[1674228166594,2.11191069,21211.0,21210.0,0.00396119]
[1674228166874,0.15,21210.0,21202.0,0.95914688]
[1674228167148,0.471529,21208.0,21202.0,0.48749988]
[1674228167410,0.49975597,21207.0,21204.0,0.11710147]
[1674228167669,0.303752,21206.0,21204.0,0.11710147]
[1674228167931,0.3996951,21206.0,21203.0,0.72232389]
[1674228168182,0.59401607,21206.0,21203.0,0.72232389]
[1674228168439,0.796079,21210.0,21204.0,0.3]
[1674228168440,0.009,21207.0,21204.0,0.3]
[1674228168698,0.480489,21210.0,21206.0,0.74256136]
[1674228168699,0.4232379,21210.0,21206.0,0.74256136]
[1674228169008,0.4232379,21210.0,21207.0,0.3]
[1674228169233,0.621432,21212.0,21206.0,1.21411536]
[1674228169234,0.33303609,21208.0,21206.0,1.21411536]
[1674228169740,0.33303609,21208.0,21206.0,1.44411536]
[1674228170318,0.15,21211.0,21207.0,0.3]
[1674228170525,0.51973462,21212.0,21208.0,0.017403]
[1674228170793,0.51973462,21212.0,21209.0,0.017397]
[1674228171039,0.009,21208.0,21207.0,0.099549]
[1674228171297,0.38869827,21210.0,21207.0,0.571083]
[1674228171829,0.01,21211.0,21208.0,0.3085]
[1674228172099,0.01,21211.0,21209.0,0.017403]
[1674228172363,0.01,21211.0,21208.0,0.780004]
[1674228172622,0.01,21211.0,21209.0,0.638891]
[1674228172880,0.782976,21216.0,21209.0,0.638891]
[1674228172881,1.254325,21216.0,21209.0,0.471494]
[1674228173133,0.50545673,21212.0,21209.0,0.471494]
[1674228173396,0.32013,21215.0,21210.0,0.41578878]
[1674228173667,0.005,21211.0,21210.0,0.11578878]
[1674228173929,0.45621384,21212.0,21210.0,0.58726178]
[1674228174249,0.45621384,21212.0,21210.0,0.11578878]
[1674228174468,0.45621384,21212.0,21210.0,0.471475]
[1674228174734,0.15,21214.0,21209.0,0.35979503]
[1674228175016,0.46723159,21214.0,21210.0,0.771469]
[1674228175753,0.46723159,21214.0,21210.0,1.242944]
[1674228176022,0.084,21212.0,21210.0,0.942944]
[1674228176271,0.084,21212.0,21210.0,0.471475]
[1674228176533,0.084,21212.0,21210.0,0.94395]
[1674228176796,0.66155256,21214.0,21210.0,0.471475]
[1674228177052,0.008,21212.0,21210.0,0.480475]
[1674228177315,0.008,21212.0,21210.0,0.95195]
[1674228177585,0.008,21212.0,21210.0,0.480475]
[1674228178126,0.008,21212.0,21211.0,0.3085]
[1674228178351,0.008,21212.0,21211.0,1.268801]
[1674228178615,0.008,21212.0,21211.0,0.025895]
[1674228178897,0.4325991,21211.0,21210.0,0.471457]
[1674228179162,0.4325991,21211.0,21208.0,0.900405]
[1674228179421,0.19432097,21211.0,21208.0,0.900405]
[1674228179676,0.54508499,21211.0,21208.0,0.943025]
[1674228179932,0.35076402,21211.0,21208.0,0.943025]
[1674228180193,0.35876402,21211.0,21210.0,0.009]
[1674228180455,0.15,21210.0,21208.0,0.08]
[1674228180746,0.43636063,21209.0,21208.0,0.089]
[1674228181004,0.84257279,21209.0,21208.0,0.089]
[1674228181262,1.78556679,21209.0,21208.0,0.089]
[1674228181546,1.23520163,21209.0,21208.0,0.089]
[1674228181807,0.798841,21209.0,21208.0,0.089]
[1674228182348,0.327344,21209.0,21208.0,0.08]
[1674228182349,0.008,21210.0,21208.0,0.088]
[1674228182604,0.98975756,21212.0,21208.0,0.08]
[1674228182605,0.56325563,21211.0,21208.0,0.08]
[1674228182869,0.56599461,21209.0,21208.0,0.088]
[1674228183135,0.89859261,21209.0,21208.0,0.088]
[1674228183392,0.332598,21209.0,21208.0,0.08]
[1674228183651,0.316917,21209.0,21208.0,0.088]
[1674228183910,0.33293083,21210.0,21208.0,0.08]
[1674228184169,0.33293083,21210.0,21208.0,0.088]
[1674228184170,0.004,21209.0,21208.0,0.088]
[1674228184431,0.318112,21209.0,21208.0,0.088]
[1674228184689,0.317854,21209.0,21208.0,0.088]
[1674228184958,0.94103124,21209.0,21208.0,0.088]
[1674228185214,0.74671027,21209.0,21208.0,0.088]
[1674228185503,1.09103124,21209.0,21208.0,0.088]
[1674228185775,1.53766753,21209.0,21208.0,0.088]
[1674228186128,1.87829613,21209.0,21208.0,0.088]
[1674228186654,2.17829613,21209.0,21208.0,0.088]
[1674228186914,1.87829613,21209.0,21208.0,0.088]
[1674228187171,2.3151211,21209.0,21208.0,0.08]
[1674228187443,2.76593313,21209.0,21208.0,0.081]
[1674228187722,2.32910816,21209.0,21208.0,0.081]
[1674228188256,2.32910816,21209.0,21208.0,0.08]
[1674228188257,2.27410816,21209.0,21208.0,0.08]
[1674228188516,3.00213588,21209.0,21208.0,0.001]
[1674228188808,3.00156826,21209.0,21208.0,0.001]
[1674228189068,3.00078553,21209.0,21208.0,0.001]
[1674228189345,0.15,21208.0,21206.0,0.74256136]
[1674228189597,2.23810249,21207.0,21206.0,0.74256136]
[1674228189853,2.53803255,21207.0,21206.0,0.74256136]
[1674228190318,2.19000269,21207.0,21206.0,0.74256136]
[1674228190575,1.89000269,21207.0,21206.0,0.74256136]
[1674228190832,2.41331802,21207.0,21206.0,0.74256136]
[1674228191108,0.15,21206.0,21201.0,0.00411517]
[1674228191390,0.1467,21203.0,21201.0,0.00411517]
[1674228191617,1.90151869,21202.0,21201.0,0.00411517]
[1674228191891,2.02611869,21202.0,21201.0,0.00411517]
[1674228192137,2.33561745,21202.0,21201.0,0.00411517]
[1674228192961,2.42561745,21202.0,21201.0,0.00411517]
[1674228193243,2.11611869,21202.0,21201.0,0.00411517]
[1674228193770,2.02611869,21202.0,21201.0,0.00411517]
[1674228194051,2.11638579,21202.0,21201.0,0.00411517]
[1674228194309,2.02638579,21202.0,21201.0,0.00411517]
[1674228194584,2.79572133,21202.0,21201.0,0.00411517]
[1674228194851,3.17598933,21202.0,21201.0,0.00411517]
[1674228195116,3.26698933,21202.0,21201.0,0.00411517]
[1674228195420,3.26698933,21202.0,21201.0,5.17e-06]
[1674228195676,0.6235,21201.0,21199.0,0.00449351]
[1674228195962,2.61739069,21200.0,21199.0,0.00449351]
[1674228196231,3.29768899,21200.0,21199.0,0.00449351]
[1674228196489,0.15967649,21199.0,21198.0,0.00493574]
[1674228196798,2.06258283,21199.0,21198.0,0.00493574]
[1674228197067,0.16017426,21198.0,21197.0,0.00480363]
[1674228197347,2.5962322,21198.0,21197.0,0.00480363]
[1674228197609,2.9949322,21198.0,21197.0,0.00480363]
[1674228197883,2.99522625,21198.0,21197.0,0.00480363]
[1674228198292,2.99522625,21198.0,21197.0,3.63e-06]
[1674228198533,3.59846936,21198.0,21197.0,3.63e-06]
[1674228198764,2.315302,21198.0,21197.0,3.63e-06]
[1674228199000,2.406302,21198.0,21197.0,3.63e-06]
[1674228199219,0.42674205,21198.0,21197.0,3.63e-06]
[1674228199656,0.09129405,21198.0,21197.0,3.63e-06]
[1674228200137,0.00029405,21198.0,21197.0,0.02401563]
[1674228200607,1.66431367,21204.0,21198.0,0.00017299]
[1674228200844,0.17753222,21203.0,21198.0,0.00867299]
[1674228201075,0.15,21201.0,21198.0,0.00867299]
[1674228201295,0.15,21201.0,21197.0,0.59545863]
[1674228201296,0.15,21201.0,21197.0,0.35417628]
[1674228201512,0.49131312,21199.0,21198.0,0.0085]
[1674228201732,1.03142509,21199.0,21198.0,0.008]
[1674228201946,0.69011197,21199.0,21198.0,0.008]
[1674228202237,1.3841949,21199.0,21194.0,0.39330363]
[1674228202471,0.324904,21198.0,21197.0,0.008]
[1674228202695,0.324904,21198.0,21194.0,0.00480363]
[1674228202933,0.19432097,21198.0,21194.0,0.47662463]
[1674228203164,0.19432097,21198.0,21195.0,0.15]
[1674228203384,0.621676,21201.0,21195.0,0.15]
[1674228203602,1.3016894,21201.0,21195.0,0.45]
[1674228203840,0.19432097,21201.0,21195.0,1.046504]
[1674228204058,0.63588145,21201.0,21195.0,1.046504]
[1674228204286,0.36360097,21201.0,21195.0,1.046504]
[1674228204509,0.342189,21200.0,21195.0,1.046504]
[1674228204734,0.53650997,21200.0,21195.0,1.054504]
[1674228204959,0.65272727,21200.0,21195.0,1.046504]
[1674228205163,0.65272727,21200.0,21195.0,0.904504]
[1674228205164,0.19432097,21199.0,21195.0,0.904504]
[1674228205401,0.19432097,21199.0,21195.0,0.896504]
[1674228205626,0.350189,21200.0,21195.0,0.904504]
[1674228206014,0.471618,21204.0,21195.0,0.896504]
[1674228206121,0.41114111,21200.0,21197.0,0.124]
[1674228206347,0.008,21199.0,21197.0,0.59575]
[1674228206795,0.3610977,21198.0,21196.0,0.0085]
[1674228207010,0.55541867,21198.0,21195.0,0.95161]
[1674228207258,0.008,21199.0,21195.0,0.95161]
[1674228207489,0.32155,21202.0,21195.0,0.95161]
[1674228207490,1.05107748,21203.0,21195.0,0.94361]
[1674228207721,0.008,21200.0,21196.0,0.0085]
[1674228207950,0.008,21200.0,21197.0,1.113729]
[1674228208173,0.008,21200.0,21198.0,0.4585]
[1674228208389,0.46428864,21202.0,21198.0,0.780226]
[1674228208648,0.009,21199.0,21198.0,0.780226]
[1674228209309,0.15,21204.0,21198.0,0.780226]
[1674228209528,0.53734114,21204.0,21198.0,0.780226]
[1674228209768,0.621598,21205.0,21198.0,0.780226]
[1674228209984,0.43847176,21204.0,21199.0,0.15]
[1674228210206,0.43847176,21204.0,21200.0,0.471694]
[1674228210422,0.43847176,21204.0,21201.0,0.3]
[1674228210862,0.4683288,21203.0,21200.0,0.47169]
[1674228211116,0.4683288,21203.0,21199.0,0.471711]
[1674228211368,0.39013211,21202.0,21200.0,0.3]
[1674228211569,0.39013211,21202.0,21199.0,0.471711]
[1674228211791,0.39013211,21202.0,21201.0,0.008]
[1674228212010,0.41878442,21204.0,21201.0,0.008]
[1674228212272,0.41478442,21204.0,21201.0,0.3]
[1674228212490,0.42686571,21205.0,21201.0,0.3]
[1674228212751,0.41364497,21204.0,21201.0,0.3]
[1674228212961,0.42524606,21203.0,21200.0,0.471692]
[1674228213176,0.61956703,21203.0,21200.0,0.471689]
[1674228213394,0.008,21203.0,21200.0,0.471689]
[1674228213648,0.36146382,21203.0,21200.0,0.471689]
[1674228213877,0.36146382,21203.0,21201.0,0.008]
[1674228214087,0.36146382,21203.0,21200.0,0.943366]
[1674228214305,0.56478479,21203.0,21200.0,0.479677]
[1674228214523,0.55578479,21203.0,21200.0,0.471677]